bitfinex/quotes_ETHUSD_20240714
["timestamp","ask_amount","ask_price","bid_price","bid_amount"]
[1720937486728,0.32600547,3205.2,3204.8,3.12029]
[1720937490003,0.32600547,3205.2,3204.7,5.43329]
[1720937490301,1.08084007,3205.1,3204.7,5.43329]
[1720937490500,0.32600547,3205.2,3204.8,3.1203]
[1720937491141,4.607076,3205.5,3204.8,3.1203]
[1720937491315,1.54154953,3205.4,3204.8,3.1203]
[1720937491634,1.08084193,3205.3,3204.8,3.1203]
[1720937492641,1.08086171,3205.2,3204.8,3.1203]
[1720937492959,0.4607076,3205.4,3204.8,3.1203]
[1720937493145,1.08086203,3205.3,3204.8,3.1203]
[1720937493438,1.08086203,3205.2,3204.8,3.1203]
[1720937493740,0.4607076,3205.4,3204.8,3.1203]
[1720937493927,1.08085325,3205.3,3204.9,0.10135686]
[1720937494127,1.08085325,3205.2,3204.9,0.10135686]
[1720937494348,0.4607076,3205.4,3204.9,0.10135686]
[1720937494650,2.37262639,3205.3,3204.9,0.10135686]
[1720937494944,1.08084803,3205.2,3204.7,5.43329]
[1720937495249,1.08088978,3205.1,3205.0,0.10137163]
[1720937495409,1.08088978,3205.1,3204.7,5.43329]
[1720937495750,1.29177836,3205.3,3204.7,5.43329]
[1720937495918,1.08089648,3205.2,3204.8,0.10142343]
[1720937496239,1.08088339,3205.1,3204.8,0.10142343]
[1720937496455,1.29177836,3205.3,3204.8,0.10142343]
[1720937496605,1.08088128,3205.2,3204.8,0.10142343]
[1720937496819,1.29177836,3205.3,3204.8,0.10142343]
[1720937497015,1.08086395,3205.2,3204.8,0.10142343]
[1720937497221,1.29177836,3205.3,3204.8,0.10142343]
[1720937497445,1.08086226,3205.2,3204.8,0.10142343]
[1720937497767,1.08087012,3205.1,3204.8,0.10142343]
[1720937498059,1.29177836,3205.3,3204.8,0.10142343]
[1720937498280,1.08086658,3205.2,3204.8,3.22173343]
[1720937498438,3.11992,3205.3,3204.9,2.4137]
[1720937498639,1.08085152,3205.2,3205.0,0.10137163]
[1720937498842,1.50092867,3205.1,3204.8,2.4137]
[1720937499157,0.42007715,3205.1,3204.9,0.10141056]
[1720937499726,1.08088065,3205.0,3204.9,0.10141056]
[1720937500134,3.90492,3205.3,3204.9,0.10141056]
[1720937500477,1.08085166,3205.2,3204.9,0.10141056]
[1720937500662,1.08085166,3205.1,3204.9,0.10141056]
[1720937501457,1.40681407,3205.1,3204.9,0.10141056]
[1720937501838,1.08085166,3205.0,3204.9,0.10141056]
[1720937502824,1.08085169,3205.0,3204.9,0.10141056]
[1720937503323,1.08088693,3205.0,3204.9,0.10141056]
[1720937504288,1.30007186,3205.0,3204.9,0.10141056]
[1720937504746,1.30007186,3205.0,3204.5,2.351]
[1720937504951,1.86588693,3204.9,3204.5,2.351]
[1720937505179,1.08088693,3204.8,3204.5,2.351]
[1720937506030,0.785,3204.9,3204.5,2.351]
[1720937506236,1.08103077,3204.8,3204.5,2.351]
[1720937507830,1.28955234,3204.8,3204.5,2.351]
[1720937508031,1.08103077,3204.7,3204.5,2.351]
[1720937508460,1.08103077,3204.7,3204.2,5.47189]
[1720937508870,1.08103077,3204.8,3204.3,0.09826049]
[1720937509069,1.08103077,3204.7,3204.2,5.47189]
[1720937509267,1.08103077,3204.8,3204.2,5.47189]
[1720937509482,1.08103692,3204.7,3204.3,0.0949412]
[1720937509643,1.08103692,3204.6,3204.3,0.0949412]
[1720937509844,1.08103692,3204.5,3204.2,5.47189]
[1720937510081,1.08103692,3204.4,3204.3,0.09173344]
[1720937510268,1.08103692,3204.4,3204.2,5.47189]
[1720937510471,3.90523,3204.9,3204.3,0.09173344]
[1720937510647,1.49347888,3204.8,3204.3,0.09173344]
[1720937510976,1.08103739,3204.7,3204.2,5.47189]
[1720937511275,1.08103739,3204.6,3204.3,0.0918278]
[1720937511476,3.12051,3204.6,3204.2,2.351]
[1720937511779,1.50119213,3204.5,3204.3,0.0918278]
[1720937511983,1.08103739,3204.4,3204.3,0.0918278]
[1720937512184,1.08103739,3204.7,3204.2,2.351]
[1720937512350,1.08103739,3204.7,3204.3,0.0918278]
[1720937512683,1.08103739,3204.7,3204.2,2.351]
[1720937512844,1.08103663,3204.6,3204.3,0.0918278]
[1720937513044,1.08103663,3204.5,3204.4,2.351]
[1720937513244,1.08103663,3204.5,3204.4,2.44280189]
[1720937513748,1.08103663,3204.5,3204.4,8.68420189]
[1720937514257,0.32596241,3205.1,3205.0,5.47112]
[1720937514464,0.32596241,3205.1,3205.0,5.56276646]
[1720937514660,1.40681629,3205.1,3205.0,5.56276646]
[1720937515547,1.40681629,3205.1,3205.0,8.68288646]
[1720937515998,1.40672674,3205.1,3205.0,8.68288646]
[1720937516493,0.32596241,3205.1,3205.0,8.68288646]
[1720937516652,0.32596241,3205.1,3205.0,9.55117511]
[1720937517350,1.40670485,3205.1,3205.0,9.55117511]
[1720937517749,1.40670485,3205.1,3205.0,5.56276646]
[1720937519300,1.40676928,3205.1,3205.0,5.56276646]
[1720937520696,1.40676928,3205.1,3205.0,8.68288646]
[1720937521894,1.40670348,3205.1,3205.0,8.68288646]
[1720937525100,1.40670348,3205.1,3205.0,5.56276646]
[1720937525402,1.40677196,3205.1,3205.0,5.56276646]
[1720937526393,1.40677196,3205.1,3205.0,6.43107411]
[1720937527594,1.40677196,3205.1,3205.0,5.56276646]
[1720937528578,1.40672401,3205.1,3205.0,8.68288646]
[1720937528878,0.32596241,3205.1,3205.0,8.68288646]
[1720937531614,0.32596241,3205.1,3205.0,5.56276646]
[1720937533606,0.32596241,3205.1,3205.0,2.44264646]
[1720937533805,1.40677037,3205.1,3205.0,0.09164646]
[1720937534212,1.40677037,3205.1,3204.8,3.12031]
[1720937534438,0.32596241,3205.1,3205.0,0.09146261]
[1720937534609,1.4068249,3205.1,3204.9,0.09148851]
[1720937534939,0.32596241,3205.1,3205.0,0.09146261]
[1720937535125,1.40682631,3205.1,3205.0,0.09146261]
[1720937535429,1.40682631,3205.1,3204.7,2.3996]
[1720937535616,0.32596241,3205.1,3205.0,0.09146261]
[1720937535823,2.1919093,3205.1,3204.6,3.12048]
[1720937536134,1.11096241,3205.1,3204.6,3.12048]
[1720937536340,1.45160847,3205.0,3204.7,0.09156635]
[1720937536638,1.08095754,3204.9,3204.7,0.09156635]
[1720937537626,0.37065093,3205.0,3204.7,0.09156635]
[1720937537829,1.86596916,3204.9,3204.7,0.09156635]
[1720937538066,1.61664317,3204.8,3204.7,0.09156635]
[1720937538208,1.61664317,3204.8,3204.4,7.42]
[1720937538391,1.08096916,3204.7,3204.4,7.42]
[1720937538596,1.08106092,3204.6,3204.4,7.42]
[1720937538820,0.53567401,3204.8,3204.4,7.42]
[1720937538821,1.08106092,3204.5,3204.4,7.42]
[1720937541522,1.08106092,3204.5,3204.1,5.52059]
[1720937541720,1.08106092,3204.4,3204.1,5.52059]
[1720937541953,0.32600699,3204.6,3204.1,5.52059]
[1720937542154,1.08110213,3204.5,3204.1,5.52059]
[1720937542653,1.0810777,3204.4,3204.1,5.52059]
[1720937542831,1.0810777,3204.3,3204.1,5.52059]
[1720937543150,0.32600699,3204.6,3204.1,5.52059]
[1720937543352,1.0811114,3204.5,3204.1,5.52059]
[1720937543649,1.0811114,3204.4,3204.1,5.52059]
[1720937543844,1.0811114,3204.3,3204.1,5.52059]
[1720937544044,0.32600699,3204.6,3204.1,5.52059]
[1720937544217,1.0811076,3204.5,3204.1,5.52059]
[1720937544409,1.0811076,3204.4,3204.1,5.52059]
[1720937544639,1.0811076,3204.3,3204.1,5.52059]
[1720937544852,1.0811076,3204.5,3204.1,5.52059]
[1720937545038,1.0811076,3204.4,3204.1,5.52059]
[1720937545450,1.08111956,3204.3,3204.1,5.52059]
[1720937545638,0.32600699,3204.6,3204.1,5.52059]
[1720937545842,1.08111357,3204.5,3204.1,5.52059]
[1720937546046,1.08111357,3204.4,3204.2,3.12087]
[1720937546359,0.32600699,3204.6,3204.5,8.65832]
[1720937546520,0.32600699,3204.6,3204.5,9.44332]
[1720937546719,0.32600699,3204.6,3204.5,10.387652]
[1720937549233,0.32600699,3204.6,3204.5,13.508262]
[1720937549421,0.32600699,3204.6,3204.5,16.508262]
[1720937554065,0.32600699,3204.6,3204.5,12.69438733]
[1720937559064,0.32600699,3204.6,3204.5,9.69438733]
[1720937560074,0.32600699,3204.6,3204.5,8.75005533]
[1720937560429,1.4069913,3204.6,3204.5,8.75005533]
[1720937561056,1.4069913,3204.6,3204.5,6.33295533]
[1720937562175,1.40699341,3204.6,3204.5,6.33295533]
[1720937565076,1.40699341,3204.6,3204.5,3.21234533]
[1720937565391,1.40700321,3204.6,3204.5,3.21234533]
[1720937565676,1.40699908,3204.6,3204.5,3.21234533]
[1720937565980,1.40700612,3204.6,3204.5,3.21234533]
[1720937567965,1.40700612,3204.6,3204.5,0.09173533]
[1720937568163,1.40700612,3204.6,3204.3,3.12078]
[1720937568331,1.08099913,3204.5,3204.3,3.12078]
[1720937568537,1.08105777,3204.4,3204.3,3.12078]
[1720937568773,1.08106206,3204.4,3204.3,3.12078]
[1720937568954,1.08106206,3204.4,3204.3,3.20957902]
[1720937569462,1.08106206,3204.5,3204.3,3.20957902]
[1720937569641,1.08106206,3204.4,3204.3,3.20957902]
[1720937569974,1.08106206,3204.4,3204.3,0.08879902]
[1720937570174,1.08106206,3204.5,3204.1,3.12099]
[1720937570483,1.08106206,3204.4,3204.3,0.08886412]
[1720937570639,1.08106206,3204.5,3204.2,3.20979003]
[1720937570959,1.08106206,3204.4,3204.3,0.08886412]
[1720937571144,1.08106206,3204.4,3204.2,3.1209]
[1720937571486,1.08106206,3204.3,3204.2,3.1209]
[1720937571641,1.08106206,3204.5,3204.2,3.1209]
[1720937572045,0.6181676,3204.6,3204.2,3.1209]
[1720937572241,1.08106406,3204.4,3204.2,3.1209]
[1720937572445,1.08106406,3204.3,3204.2,3.1209]
[1720937573369,0.32600699,3204.6,3204.3,3.12077]
[1720937573553,1.08102287,3204.5,3204.3,3.12077]
[1720937573754,1.08102287,3204.4,3204.3,3.12077]
[1720937575146,0.32600699,3204.6,3204.4,3.1207]
[1720937575481,1.08099297,3204.5,3204.4,3.1207]
[1720937575990,0.32600699,3204.6,3204.4,3.1207]
[1720937576196,1.08099962,3204.5,3204.4,3.1207]
[1720937578693,0.32600699,3204.6,3204.5,3.12061]
[1720937578852,1.40703116,3204.6,3204.5,3.12061]
[1720937581260,0.32600699,3204.6,3204.5,3.12061]
[1720937581461,1.40701719,3204.6,3204.5,3.12061]
[1720937584085,1.40701719,3204.6,3204.5,3.20941903]
[1720937584654,0.32600699,3204.6,3204.5,3.20941903]
[1720937586204,1.40699225,3204.6,3204.5,3.20941903]
[1720937587292,1.40699225,3204.6,3204.5,6.33002903]
[1720937587665,1.40699225,3204.6,3204.5,3.20941903]
[1720937587963,0.32600699,3204.6,3204.5,3.20941903]
[1720937588159,1.40699972,3204.6,3204.5,3.20941903]
[1720937591696,1.40701815,3204.6,3204.5,3.20941903]
[1720937594860,1.40695982,3204.6,3204.5,3.20941903]
[1720937595493,1.40697227,3204.6,3204.5,3.20941903]
[1720937596863,1.40697227,3204.6,3204.5,7.20695993]
[1720937597166,1.40697227,3204.6,3204.5,9.54635993]
[1720937597973,0.32600699,3204.6,3204.5,9.54635993]
[1720937598170,1.40687593,3204.6,3204.5,9.54635993]
[1720937601291,1.40687593,3204.6,3204.5,8.66942903]
[1720937601491,0.32600699,3204.6,3204.5,8.66942903]
[1720937601878,1.40693937,3204.6,3204.5,8.66942903]
[1720937605013,0.32600699,3204.6,3204.5,8.66942903]
[1720937605210,1.40694004,3204.6,3204.5,8.66942903]
[1720937605509,0.32600699,3204.6,3204.5,8.66942903]
[1720937605714,0.32600699,3204.6,3204.5,9.53637193]
[1720937605879,1.40693963,3204.6,3204.5,9.53637193]
[1720937608320,1.40695358,3204.6,3204.5,8.66942903]
[1720937608479,1.40694606,3204.6,3204.5,8.66942903]
[1720937608813,1.40694606,3204.6,3204.5,6.33002903]
[1720937610650,1.40694606,3204.6,3204.5,3.20941903]
[1720937611630,0.32600699,3204.6,3204.5,3.20941903]
[1720937611809,1.40699919,3204.6,3204.5,3.20941903]
[1720937615132,1.40700684,3204.6,3204.5,3.20941903]
[1720937615337,0.32600699,3204.6,3204.5,3.20941903]
[1720937616403,1.40700692,3204.6,3204.5,3.20941903]
[1720937618345,0.32600699,3204.6,3204.5,3.20941903]
[1720937618709,1.40701981,3204.6,3204.5,3.20941903]
[1720937619028,1.4070004,3204.6,3204.5,3.20941903]
[1720937620414,1.4070004,3204.6,3204.5,0.08880903]
[1720937620613,1.4070004,3204.6,3204.3,6.24154]
[1720937620862,1.08099341,3204.5,3204.4,3.20953167]
[1720937621146,1.08099341,3204.5,3204.4,0.08883167]
[1720937621362,2.47020445,3204.5,3204.4,0.08883167]
[1720937621529,2.47020445,3204.5,3203.8,2.3684]
[1720937621530,2.47041494,3204.5,3203.8,2.3684]
[1720937621857,2.47041494,3204.5,3203.9,0.08898729]
[1720937621858,4.20195693,3204.4,3203.9,0.08898729]
[1720937622039,1.64034373,3204.3,3203.9,0.08898729]
[1720937622347,4.20216693,3204.2,3203.9,0.08898729]
[1720937622558,3.38082693,3204.1,3203.9,0.08898729]
[1720937622736,1.08122693,3204.0,3203.4,3.12167]
[1720937622914,1.08122693,3204.0,3203.5,3.0]
[1720937623552,1.08122693,3204.0,3203.4,3.12167]
[1720937623970,1.08122693,3204.0,3203.4,0.861191]
[1720937624120,1.08122693,3204.0,3203.8,3.12122]
[1720937624324,0.32662745,3204.2,3203.8,3.12122]
[1720937624325,1.08122693,3204.1,3203.8,3.12122]
[1720937624523,1.08122693,3204.0,3203.9,2.3978]
[1720937624719,1.08122693,3204.0,3203.9,5.51899]
[1720937624939,0.32662745,3204.2,3204.1,3.121]
[1720937625144,1.40776835,3204.2,3204.1,3.121]
[1720937625334,1.40776835,3204.2,3204.1,6.07068]
[1720937625533,0.32662745,3204.2,3204.1,6.07068]
[1720937625928,1.40769205,3204.2,3204.1,6.07068]
[1720937626562,1.40769205,3204.2,3204.1,9.19168]
[1720937627245,1.40769115,3204.2,3204.1,9.19168]
[1720937627622,0.32662745,3204.2,3204.1,9.19168]
[1720937628929,0.32662745,3204.2,3204.1,12.31268]
[1720937629132,0.32662745,3204.2,3204.1,13.18669358]
[1720937629667,0.32662745,3204.2,3204.1,12.40169358]
[1720937630548,0.32662745,3204.2,3204.1,9.28069358]
[1720937631752,0.32662745,3204.2,3204.1,5.60781358]
[1720937638883,0.32662745,3204.2,3204.1,8.72881358]
[1720937639186,0.32662745,3204.2,3204.1,5.60781358]
[1720937640192,1.4077249,3204.2,3204.1,5.60781358]
[1720937640393,0.32662745,3204.2,3204.1,5.60781358]
[1720937640603,0.32662745,3204.2,3204.1,9.60169494]
[1720937642694,1.40772644,3204.2,3204.1,5.60781358]
[1720937643372,1.40772644,3204.2,3204.1,3.21001358]
[1720937643572,1.40772644,3204.2,3204.1,0.08901358]
[1720937643974,0.32662745,3204.2,3204.1,0.08901358]
[1720937644181,1.40779599,3204.2,3203.9,3.12116]
[1720937644356,0.32662745,3204.2,3204.1,0.08899893]
[1720937644559,0.32662745,3204.2,3204.0,3.21010485]
[1720937644807,0.32662745,3204.2,3204.1,2.37749893]
[1720937644964,1.40774981,3204.2,3204.1,2.37749893]
[1720937645983,1.40774981,3204.2,3204.1,5.49849893]
[1720937646292,1.40774981,3204.2,3204.1,6.36045682]
[1720937646658,1.40774981,3204.2,3204.1,9.48145682]
[1720937647092,0.32662745,3204.2,3204.1,9.48145682]
[1720937647815,1.40766809,3204.2,3204.1,9.48145682]
[1720937648025,0.32662745,3204.2,3204.1,9.48145682]
[1720937649013,1.40767396,3204.2,3204.1,9.48145682]
[1720937650487,0.32662745,3204.2,3204.1,9.48145682]
[1720937650898,0.32662745,3204.2,3204.1,12.60245682]
[1720937652288,0.32662745,3204.2,3204.1,15.72345682]
[1720937652517,0.32662745,3204.2,3204.1,19.27345682]
[1720937656126,0.32662745,3204.2,3204.1,16.93745682]
[1720937656324,0.32662745,3204.2,3204.1,15.60245682]
[1720937656526,0.32662745,3204.2,3204.1,16.38745682]
[1720937660027,0.32662745,3204.2,3204.1,9.48145682]
[1720937660233,0.32662745,3204.2,3204.1,6.33099893]
[1720937661317,1.40770211,3204.2,3204.1,6.33099893]
[1720937661911,2.19270211,3204.2,3204.1,0.08899893]
[1720937662118,2.19270211,3204.2,3203.8,3.12127]
[1720937662325,1.45180487,3204.1,3203.9,0.08898729]
[1720937662542,1.08107466,3204.0,3203.9,0.08898729]
[1720937662747,1.08107466,3204.1,3203.9,0.08898729]
[1720937662948,1.08107466,3204.0,3203.9,0.08898729]
[1720937663145,1.08107466,3204.1,3203.9,0.08898729]
[1720937663356,1.08107466,3204.0,3203.6,3.12147]
[1720937663512,1.08107466,3204.1,3203.6,3.12147]
[1720937663717,1.45180487,3204.1,3203.6,3.12147]
[1720937663917,0.37073021,3204.1,3203.6,3.12147]
[1720937664146,1.08128247,3204.0,3203.6,3.12147]
[1720937664539,1.08128247,3203.9,3203.6,3.12147]
[1720937664714,1.08128247,3204.0,3203.6,3.12147]
[1720937664935,1.33764648,3204.0,3203.6,3.12147]
[1720937665121,1.08128247,3203.9,3203.6,3.12147]
[1720937665318,1.08128247,3203.8,3203.6,3.12147]
[1720937665520,1.08128247,3203.9,3203.6,3.12147]
[1720937666025,0.32655895,3203.8,3203.6,3.12147]
[1720937667657,3.2427205,3205.6,3204.3,2.3206]
[1720937667829,3.2427205,3205.6,3203.8,3.12122]
[1720937667830,0.785,3206.5,3205.6,2.3206]
[1720937668032,0.785,3206.3,3205.6,2.3206]
[1720937668272,0.785,3206.1,3205.6,3.11952]
[1720937668451,1.08066444,3206.0,3205.6,3.11952]
[1720937668630,1.08066444,3205.9,3205.4,3.18211557]
[1720937668972,0.18656644,3206.2,3205.9,3.11921]
[1720937669142,1.08052684,3206.1,3205.9,3.11921]
[1720937669465,0.785,3206.5,3205.9,3.11921]
[1720937670764,0.002938,3206.6,3206.0,3.11914]
[1720937673869,0.002938,3206.6,3206.1,0.08829307]
[1720937676664,0.002938,3206.6,3206.1,3.20734307]
[1720937676854,0.3002938,3206.5,3206.1,3.20734307]
[1720937677070,0.002938,3206.6,3206.1,3.20734307]
[1720937679205,0.002938,3206.6,3206.3,3.11881]
[1720937679509,0.002938,3206.6,3206.5,3.11866]
[1720937679882,0.002938,3206.6,3206.5,3.20556236]
[1720937680570,0.002938,3206.6,3206.5,0.08690236]
[1720937681104,0.002938,3206.6,3206.3,3.11881]
[1720937681322,0.002938,3206.6,3206.5,0.08690236]
[1720937681477,0.002938,3206.6,3206.3,3.11881]
[1720937681679,0.002938,3206.6,3206.5,0.08690236]
[1720937681887,0.002938,3206.6,3206.3,3.11881]
[1720937682204,0.002938,3206.6,3206.5,0.08690236]
[1720937682388,0.002938,3206.6,3206.4,3.20559824]
[1720937682703,0.002938,3206.6,3206.5,0.08690236]
[1720937684771,0.32937453,3206.6,3206.3,3.11882]
[1720937684970,0.32937453,3206.6,3206.5,0.08680806]
[1720937685171,0.32937453,3206.6,3206.3,3.11882]
[1720937685372,0.32937453,3206.6,3206.5,0.08680806]
[1720937685579,0.32937453,3206.6,3206.3,3.11882]
[1720937685785,0.32937453,3206.6,3206.5,0.08389366]
[1720937686000,0.32937453,3206.6,3206.4,0.08391954]
[1720937686186,0.32937453,3206.6,3206.5,0.08389366]
[1720937686571,0.32937453,3206.6,3206.3,3.11882]
[1720937686905,0.32937453,3206.6,3206.4,0.08391954]
[1720937687402,0.32937453,3206.6,3206.4,3.20257954]
[1720937687604,0.32937453,3206.6,3206.4,0.08391954]
[1720937689197,0.32937453,3206.6,3206.2,3.11895]
[1720937689393,0.32937453,3206.6,3206.5,0.08384001]
[1720937689599,0.32937453,3206.6,3206.2,3.11895]
[1720937689800,0.32937453,3206.6,3206.5,0.08384001]
[1720937689985,0.32937453,3206.6,3206.2,3.11895]
[1720937690316,0.32937453,3206.6,3205.9,3.11924]
[1720937690511,0.32937453,3206.6,3206.3,0.08389176]
[1720937690712,0.98600698,3206.6,3205.9,3.11924]
[1720937690894,0.98600698,3206.6,3206.4,0.08386588]
[1720937691073,0.98600698,3206.6,3205.9,3.11924]
[1720937691277,0.98600698,3206.6,3206.0,0.08396941]
[1720937691597,0.98600698,3206.6,3206.0,3.20310941]
[1720937691799,0.32937453,3206.6,3206.0,3.20310941]
[1720937693195,0.32937453,3206.6,3206.1,3.11904]
[1720937693603,0.32937453,3206.6,3206.2,0.08391764]
[1720937693919,0.32937453,3206.6,3206.1,3.11904]
[1720937694079,0.32937453,3206.6,3206.3,0.08389176]
[1720937694279,0.32937453,3206.6,3206.1,3.11904]
[1720937694479,0.32937453,3206.6,3206.2,0.08391764]
[1720937694679,0.32937453,3206.6,3206.1,3.11904]
[1720937694908,0.32937453,3206.6,3206.2,0.08391764]
[1720937695205,0.32937453,3206.6,3206.1,3.11904]
[1720937695506,0.32937453,3206.6,3206.2,0.08391764]
[1720937695707,0.32937453,3206.6,3206.1,3.11904]
[1720937696008,0.32937453,3206.6,3206.3,0.08389176]
[1720937696211,0.32937453,3206.6,3206.1,3.11904]
[1720937696212,0.32937453,3206.6,3206.2,0.08391764]
[1720937696389,0.32937453,3206.6,3206.4,0.08386588]
[1720937696589,0.32937453,3206.6,3206.3,0.08389176]
[1720937696770,0.32937453,3206.6,3206.1,3.11904]
[1720937696976,0.32937453,3206.6,3206.4,0.08386588]
[1720937697213,0.32937453,3206.6,3206.1,3.11904]
[1720937697390,0.32937453,3206.6,3206.5,0.08384001]
[1720937697584,0.32937453,3206.6,3206.1,3.11904]
[1720937697812,0.32937453,3206.6,3206.5,0.08384001]
[1720937698012,0.32937453,3206.6,3206.1,3.11904]
[1720937698191,0.32937453,3206.6,3206.5,0.08384001]
[1720937698391,0.32937453,3206.6,3206.1,3.11904]
[1720937698587,0.32937453,3206.6,3206.5,0.08384001]
[1720937698795,0.75275098,3206.6,3206.1,3.11904]
[1720937699318,0.32937453,3206.6,3206.2,0.08392254]
[1720937699492,0.32937453,3206.6,3206.1,3.11904]
[1720937699809,0.32937453,3206.6,3206.3,0.08390479]
[1720937699978,0.32937453,3206.6,3206.2,0.08393067]
[1720937700180,0.32937453,3206.6,3206.1,3.11904]
[1720937700380,0.32937453,3206.6,3206.3,0.08390479]
[1720937700608,0.32937453,3206.6,3206.1,3.11904]
[1720937700812,0.32937453,3206.6,3206.4,0.08387891]
[1720937701012,0.32937453,3206.6,3206.1,3.11904]
[1720937701217,0.32937453,3206.6,3206.5,0.08385304]
[1720937701416,0.32937453,3206.6,3206.1,3.11904]
[1720937702015,0.32937453,3206.6,3206.2,3.20287067]
[1720937703116,0.32937453,3206.6,3206.3,3.11884]
[1720937703294,0.32937453,3206.6,3206.3,3.20274642]
[1720937707434,0.32937453,3206.6,3206.4,3.11874]
[1720937707731,0.32937453,3206.6,3206.5,0.08385466]
[1720937708805,0.32937453,3206.6,3206.5,3.20251466]
[1720937711447,0.002938,3206.6,3206.5,3.20251466]
[1720937716225,0.002938,3206.6,3206.5,7.19145013]
[1720937720430,0.002938,3206.6,3206.5,4.07279013]
[1720937720637,0.002938,3206.6,3206.5,3.20251466]
[1720937721226,0.32928735,3206.6,3206.5,3.20251466]
[1720937727467,0.32928735,3206.6,3206.5,0.08385466]
[1720937727869,0.32928735,3206.6,3206.3,2.3815]
[1720937728035,0.32928735,3206.6,3206.5,0.08378476]
[1720937728232,0.32928735,3206.6,3206.4,0.08381063]
[1720937728436,0.32928735,3206.6,3206.5,0.08378476]
[1720937728638,3.44784735,3206.6,3206.5,0.08378476]
[1720937728875,4.37167108,3206.6,3205.8,12.99712]
[1720937729386,0.786,3206.2,3205.9,0.08394005]
[1720937732765,0.786,3206.2,3205.5,5.57737]
[1720937733079,0.786,3206.2,3206.0,0.08402469]
[1720937733262,0.786,3206.2,3205.5,5.57737]
[1720937733493,0.786,3206.2,3206.1,0.08399881]
[1720937734082,0.786,3206.2,3205.6,3.11953]
[1720937734564,0.786,3206.2,3205.7,0.08410236]
[1720937735295,1.25311108,3206.6,3205.7,0.08410236]
[1720937735453,0.786,3205.8,3205.7,0.08410236]
[1720937735983,0.786,3205.8,3205.3,7.42]
[1720937736145,0.786,3205.8,3205.7,0.08410236]
[1720937736336,0.786,3205.8,3205.3,7.42]
[1720937736681,3.11925,3205.9,3205.4,0.08418003]
[1720937737799,3.85430996,3205.9,3205.4,0.08418003]
[1720937737960,3.11925,3205.9,3205.4,0.08418003]
[1720937738899,3.11925,3205.9,3205.2,5.57766]
[1720937739103,0.786,3206.0,3205.5,0.08415414]
[1720937739270,3.90522,3206.0,3205.2,5.57766]
[1720937739472,3.90522,3206.0,3205.6,0.08412825]
[1720937739665,3.90522,3206.0,3205.2,6.447437]
[1720937740197,3.90522,3206.0,3205.3,0.08420593]
[1720937740895,0.32629965,3206.1,3205.4,2.4578]
[1720937741061,0.32629965,3206.1,3205.8,2.4578]
[1720937741481,0.32629965,3206.1,3205.9,0.08417903]
[1720937743686,0.32629965,3206.1,3206.0,3.11915]
[1720937744075,0.32629965,3206.1,3206.0,3.20329178]
[1720937744396,0.32629965,3206.1,3206.0,9.52717496]
[1720937745500,0.32629965,3206.1,3206.0,13.43232496]
[1720937745703,0.32629965,3206.1,3206.0,19.55147496]
[1720937745866,0.002938,3206.6,3206.5,9.35598]
[1720937746065,0.002938,3206.6,3206.5,12.46868]
[1720937746298,0.002938,3206.6,3206.5,13.79950996]
[1720937750715,0.002938,3206.6,3206.5,20.98453975]
[1720937751209,8e-06,3206.6,3206.5,20.98453975]
[1720937751371,0.32617391,3208.0,3207.9,3.1173]
[1720937751910,0.32617391,3208.0,3207.9,3.20063561]
[1720937752592,0.786,3208.2,3208.1,3.1171]
[1720937753005,0.786,3208.2,3208.1,3.2003839]
[1720937753593,0.32616999,3208.4,3208.1,3.2003839]
[1720937754113,0.32616999,3208.4,3208.2,3.117]
[1720937754307,0.32616999,3208.4,3208.3,3.11691]
[1720937754631,0.32616999,3208.4,3208.3,3.2001422]
[1720937757026,0.32616999,3208.4,3208.3,0.0832322]
[1720937757321,0.32616999,3208.4,3208.2,3.11699]
[1720937757482,0.32616999,3208.4,3208.3,0.0832322]
[1720937757921,0.32616999,3208.4,3208.1,3.1171]
[1720937758122,0.32616999,3208.4,3208.3,0.0832322]
[1720937758419,0.32616999,3208.4,3208.2,0.08325805]
[1720937758718,0.32616999,3208.4,3208.3,0.0832322]
[1720937759109,0.32616999,3208.4,3208.1,3.1171]
[1720937759312,0.32616999,3208.4,3208.3,0.08288447]
[1720937759517,0.32616999,3208.4,3208.2,0.08291032]
[1720937759746,0.32616999,3208.4,3208.3,0.08289096]
[1720937760413,0.32616999,3208.4,3207.9,3.11727]
[1720937760608,0.32616999,3208.4,3208.3,0.08289096]
[1720937760787,0.32616999,3208.4,3207.9,3.11727]
[1720937760988,0.32616999,3208.4,3208.0,0.08296851]
[1720937762999,0.32616999,3208.4,3207.7,3.11743]
[1720937763394,0.32616999,3208.4,3207.8,3.20041022]
[1720937764138,0.72192999,3208.4,3207.8,3.20041022]
[1720937764345,0.72192999,3208.4,3207.8,0.08302022]
[1720937765939,0.32616999,3208.4,3207.8,0.08302022]
[1720937766165,0.32616999,3208.4,3207.6,7.42]
[1720937766456,3.11692,3208.3,3207.6,7.42]
[1720937766659,3.11692,3208.3,3207.7,0.08293075]
[1720937771744,0.5148,3208.6,3207.7,0.08293075]
[1720937771983,3.63142,3208.6,3207.8,5.58623]
[1720937772479,3.63142,3208.6,3207.9,0.0828969]
[1720937773040,3.63142,3208.6,3207.9,3.2001569]
[1720937775460,6.11643,3208.8,3208.0,3.11717]
[1720937775664,3.11643,3208.8,3208.1,2.55173058]
[1720937775850,3.11654,3208.7,3208.1,2.55173058]
[1720937776684,0.785,3208.5,3208.1,2.55173058]
[1720937780492,0.785,3208.3,3208.1,0.08283058]
[1720937780888,0.785,3208.3,3207.8,2.4689]
[1720937781123,0.785,3208.0,3207.9,0.08287417]
[1720937781327,7.0194,3208.0,3207.9,0.08287417]
[1720937781610,3.11747,3207.8,3207.0,3.11817]
[1720937781903,0.785,3207.3,3207.1,0.08039049]
[1720937782094,0.785,3207.3,3207.0,3.11817]
[1720937782296,0.785,3207.3,3207.1,3.19847049]
[1720937783315,0.785,3207.3,3207.1,0.08039049]
[1720937783518,0.785,3207.3,3206.9,2.3171]
[1720937783697,0.785,3207.3,3207.2,0.08041066]
[1720937783893,3.1174,3207.8,3207.0,3.11814]
[1720937784121,0.785,3207.5,3207.1,0.08054962]
[1720937784327,0.785,3207.5,3207.2,3.11797]
[1720937784507,0.785,3207.7,3207.2,3.11797]
[1720937784826,0.785,3207.7,3207.3,0.08049789]
[1720937785431,0.785,3207.5,3207.3,0.08049789]
[1720937786124,0.785,3207.6,3207.3,0.08049789]
[1720937786441,0.785,3207.8,3207.4,2.3171]
[1720937786930,0.785,3207.8,3207.5,0.08044455]
[1720937788829,0.785,3207.6,3207.5,0.08044455]
[1720937793224,3.11831,3206.9,3206.0,3.11909]